fUST/lending_fUST_20250309
["ID","MTS","AMOUNT","RATE_DAILY","PERIOD"]
[355694487,1741469438828,-285.63034107,0.00049332,120]
[355694488,1741469438837,-150486.76263991,0.00049332,30]
[355694489,1741469438847,-150486.76263991,0.00049332,30]
[355694490,1741469438860,-7164.00956119,0.00049332,30]
[355694491,1741469438869,-449.21,0.000494,30]
[355694492,1741469438879,-515.73,0.000494,30]
[355694493,1741469438888,-527.0,0.0005,120]
[355694494,1741469438902,-778.0,0.0005,120]
[355694495,1741469438913,-150.0,0.00050701,30]
[355694496,1741469438923,-183.39134414,0.00051963,2]
[355694497,1741469438935,-527.0,0.00052,120]
[355694498,1741469438946,-778.0,0.00052,120]
[355694499,1741469438955,-150.0,0.00052071,30]
[355694500,1741469438965,-1812.56287327,0.0005208,27]
[355694501,1741469438974,-186.181169,0.00052212,2]
[355694502,1741469438983,-1000.0,0.00053351,10]
[355694503,1741469438992,-150.0,0.00053441,30]
[355694504,1741469439001,-527.0,0.00054,120]
[355694505,1741469439010,-778.0,0.00054,120]
[355694506,1741469439019,-50626.19184396,0.000542,120]
[355694507,1741469439029,-500.0,0.00054273,10]
[355694508,1741469439038,-222000.0,0.000543,2]
[355694509,1741469439048,-183.39134414,0.00054694,2]
[355694510,1741469439057,-500.0,0.00054773,10]
[355694511,1741469439066,-150.0,0.00054773,10]
[355694512,1741469439075,-500.0,0.00054773,10]
[355694513,1741469439087,-255.29260692,0.00054773,3]
[355694514,1741469439097,-500.0,0.00054773,10]
[355694515,1741469439107,-500.0,0.00054773,10]
[355694516,1741469439117,-500.0,0.00054773,10]
[355694517,1741469439128,-500.0,0.00054773,10]
[355694518,1741469439138,-500.0,0.00054773,10]
[355694519,1741469439148,-500.0,0.00054773,10]
[355694520,1741469439157,-500.0,0.00054773,10]
[355694521,1741469439167,-500.0,0.00054773,10]
[355694522,1741469439176,-500.0,0.00054773,10]
[355694523,1741469439185,-500.0,0.00054773,2]
[355694524,1741469439195,-3189.75,0.00054794,120]
[355694525,1741469439205,-3189.75,0.00054794,120]
[355694526,1741469439215,-3189.75,0.00054794,120]
[355694527,1741469439225,-3189.75,0.00054794,120]
[355694528,1741469439235,-3189.75,0.00054794,120]
[355694529,1741469439245,-3189.75,0.00054794,120]
[355694530,1741469439254,-3189.75,0.00054794,120]
[355694531,1741469439265,-3189.75,0.00054794,120]
[355694532,1741469439274,-3189.75,0.00054794,120]
[355694533,1741469439284,-3189.75,0.00054794,120]
[355694534,1741469439294,-3189.75,0.00054794,120]
[355694535,1741469439303,-3189.75,0.00054794,120]
[355694536,1741469439313,-3189.75,0.00054794,120]
[355694537,1741469439323,-3189.75,0.00054794,120]
[355694538,1741469439332,-3189.75,0.00054794,120]
[355694539,1741469439341,-3189.75,0.00054794,120]
[355694540,1741469439350,-3189.75,0.00054794,120]
[355694541,1741469439360,-3189.75,0.00054794,120]
[355694542,1741469439369,-3189.75,0.00054794,120]
[355694543,1741469439379,-3189.75,0.00054794,120]
[355694544,1741469439388,-152.93304003,0.00054794,120]
[355694545,1741469439397,-666.0,0.00054794,120]
[355694546,1741469439407,-503.3581872,0.00054794,120]
[355694547,1741469439416,-3189.75,0.00054811,120]
[355694548,1741469439426,-150.0,0.00054811,30]
[355694549,1741469439435,-1812.56287327,0.0005487,27]
[355694550,1741469439444,-340.25,0.00055,10]
[355694551,1741469439454,-3189.75,0.00055085,120]
[355694552,1741469439463,-3189.75,0.00055359,120]
[355694553,1741469439472,-200.0,0.00055465,120]
[355694554,1741469439482,-69999.881299,0.000555,120]
[355694555,1741469439492,-285.380943,0.000555,30]
[355694556,1741469439502,-151.0,0.000555,120]
[355694557,1741469439511,-245.59917795,0.000555,120]
[355694558,1741469439521,-3189.75052905,0.00055633,120]
[355694559,1741469439530,-151.0,0.000559,120]
[355694560,1741469439540,-151.0,0.000559,120]
[355694561,1741469439549,-151.573136,0.000559,120]
[355694562,1741469439559,-151.0,0.000559,120]
[355694563,1741469439568,-5000.0,0.00056,56]
[355694564,1741469439578,-527.0,0.00056,120]
[355694565,1741469439589,-778.0,0.00056,120]
[355694566,1741469439600,-151.000001,0.00056,120]
[355694567,1741469439610,-150.0,0.00056181,30]
[355694568,1741469439621,-186.181169,0.00056563,2]
[355694569,1741469439630,-200.0,0.00056814,120]
[355694570,1741469439641,-5000.0,0.00057,57]
[355694571,1741469439651,-1876.95472869,0.00057,120]
[355694572,1741469439662,-502.03250068,0.00057373,15]
[355694573,1741469439671,-500.0,0.00057373,15]
[355694574,1741469439681,-50034.5514,0.000574,30]
[355694575,1741469439692,-151.0,0.000574,120]
[355694576,1741469439702,-151.0,0.000574,120]
[355694577,1741469439712,-151.39358,0.000574,120]
[355694578,1741469439722,-151.0,0.000574,120]
[355694579,1741469439734,-151.0,0.000574,120]
[355694580,1741469439744,-151.0,0.000574,120]
[355694581,1741469439755,-250.0,0.00057512,15]
[355694582,1741469439764,-150.0,0.00057551,30]
[355694583,1741469439774,-1933.40039816,0.0005766,31]
[355694584,1741469439783,-422.5902527,0.00057722,120]
[355694585,1741469439793,-200.0,0.00057872,120]
[355694586,1741469439803,-5000.0,0.00058,58]
[355694587,1741469439812,-527.0,0.00058,120]
[355694588,1741469439822,-778.0,0.00058,120]
[355694589,1741469439831,-413.91460277,0.00058,60]
[355694590,1741469439840,-20380.02774362,0.000581,30]
[355694591,1741469439850,-151.0,0.000581,120]
[355694592,1741469439863,-162.410261,0.00058356,2]
[355694593,1741469439872,-153.84,0.000587,60]
[355694594,1741469439882,-153.84,0.000587,60]
[355694595,1741469439891,-153.84,0.000587,60]
[355694596,1741469439900,-153.84,0.000587,60]
[355694597,1741469439911,-153.84,0.000587,60]
[355694598,1741469439920,-150.0,0.00058773,15]
[355694599,1741469439929,-500.0,0.00058773,15]
[355694600,1741469439939,-100042.47306606,0.000588,120]
[355694601,1741469439949,-209.853654,0.000588,120]
[355694603,1741469439958,-11298.53134337,0.000589,2]
[355694604,1741469439967,-150.0,0.00058921,30]
[355694605,1741469439977,-1000.0,0.00058999,120]
[355694606,1741469439986,-5000.0,0.00059,59]
[355694607,1741469439995,-14991.71536041,0.00059,71]
[355694608,1741469440004,-3169.44992837,0.00059,71]
[355694609,1741469440014,-196584.22850351,0.00059,30]
[355694610,1741469440024,-120773.3828514,0.00059,30]
[355694611,1741469440033,-120773.3828514,0.00059,30]
[355694612,1741469440042,-19240.53260691,0.00059,30]
[355694613,1741469440052,-19240.53260691,0.00059,30]
[355694614,1741469440061,-47493.74029994,0.00059,30]
[355694615,1741469440071,-40334.89450843,0.00059,30]
[355694616,1741469440084,-7158.84579151,0.00059,30]
[355694617,1741469440093,-249.56984912,0.00059,30]
[355694619,1741469440103,-249.56984912,0.00059,30]
[355694621,1741469440112,-7979.4384331,0.00059,30]
[355694670,1741469440568,-14466.34753278,0.00059,30]
[355694672,1741469440578,-20017.90727151,0.00059,30]
[355694747,1741469443570,-682.73191481,0.00059,30]
[355694765,1741469446355,-176.0042815,0.000464,120]
[355694766,1741469446365,-448.63,0.0005899,10]
[355694767,1741469446375,-1122.8867741,0.00059,30]
[355694769,1741469536028,214.9742646,0.00043525,2]
[355694770,1741469536386,1186.37203114,0.00043836,10]
[355694771,1741469538464,692.10270713,0.0004395,2]
[355694772,1741469539092,238.1825,0.00039988,14]
[355694773,1741469540108,-238.1825,0.00045995,120]
[355694774,1741469573035,-163.0,0.000425,120]
[355694775,1741469573064,-89.56040487,0.0004395,2]
[355694776,1741469573088,-210.7664285,0.000449,2]
[355694777,1741469573125,-500.0,0.00047899,120]
[355694778,1741469573154,-150.0,0.000493,2]
[355694779,1741469573180,-406.4,0.00049368,30]
[355694780,1741469573209,-373.86,0.00049368,10]
[355694781,1741469573233,-141311.57220498,0.00049378,30]
[355694782,1741469573258,-141311.57220498,0.00049378,30]
[355694783,1741469575261,163.0,0.00045,120]
[355694784,1741469577547,163.0,0.000475,120]
[355694787,1741469613113,163.0,0.000425,120]
[355694788,1741469615409,163.0,0.00045,120]
[355694789,1741469617693,163.0,0.000475,120]
[355694790,1741469637040,500.0,0.00047899,120]
[355694791,1741469645324,150.0,0.000493,2]
[355694792,1741469645881,155.78925493,0.00048261,20]
[355694793,1741469654829,250.0,0.00044707,2]
[355694794,1741469655242,3363.29388187,0.00043836,10]
[355694795,1741469658527,458.88,0.000491,9]
[355694796,1741469742067,162.414741,0.0003589,2]
[355694797,1741469742282,162.414741,0.00048527,2]
[355694798,1741469766521,155.78925492,0.00048289,20]
[355694799,1741469774304,1123.4144956,0.00045119,120]
[355694800,1741469831747,150.0,0.000493,2]
[355694801,1741469836397,500.0,0.00047899,120]
[355694802,1741469838797,184.3200936,0.00045118,2]
[355694803,1741469943604,150.0,0.00049332,30]
[355694804,1741469947819,1691.55671548,0.00049085,23]
[355694805,1741469990584,1000.0,0.00049378,2]
[355694806,1741470041327,500.0,0.00048392,94]
[355694807,1741470041415,605.72,0.00048592,95]
[355694808,1741470043551,500.0,0.00048492,100]
[355694815,1741470312226,-302.85934486,0.00043836,10]
[355694817,1741470402100,-182.67124542,0.000438,120]
[355694818,1741470402122,-24.23291085,0.00043836,10]
[355694819,1741470428205,-197.14065514,0.00043836,10]
[355694820,1741470432082,-1782.00961544,0.00043836,10]
[355694821,1741470432118,-983.0839756,0.000439,9]
[355694822,1741470432140,-1518.39391109,0.000488,120]
[355694823,1741470448127,-942.72125954,0.000488,120]
[355694824,1741470450116,-4886.61914088,0.000488,120]
[355694825,1741470453071,-1523.41768815,0.000488,120]
[355694836,1741470549113,-150.0,0.00046985,2]
[355694837,1741470549136,-175.433968,0.00048234,2]
[355694838,1741470549158,-1960.82906727,0.000488,120]
[355694839,1741470555069,-1683.10792375,0.000488,120]
[355694840,1741470605862,317.98634601,0.00048835,2]
[355694841,1741470622330,2079.98240793,0.00043836,10]
[355694867,1741470632765,-652.79871029,0.00048835,2]
[355694869,1741470632775,-150.0,0.000494,2]
[355694871,1741470632784,-90.80128971,0.000499,11]
[355694879,1741470632886,-291.91076337,0.000499,11]
[355694881,1741470632898,-249.84,0.000499,11]
[355694882,1741470634936,43.27830385,0.000432,120]
[355694883,1741470634957,156.72169615,0.000432,120]
[355694914,1741470638649,-317.76245657,0.000499,11]
[355694915,1741470638658,-163.0,0.0005,120]
[355694916,1741470638668,-163.0,0.0005,120]
[355694917,1741470638678,-531.0,0.00050441,6]
[355694918,1741470638687,-51.66834299,0.00050701,30]
[355695125,1741470644022,-287.4975214,0.00049028,120]
[355695126,1741470644034,-92.5024786,0.00049028,120]
[355695127,1741470644043,-98.33165701,0.00050701,30]
[355695128,1741470644052,-150.0,0.00052071,30]
[355695129,1741470644062,-163.0,0.000525,120]
[355695130,1741470644071,-163.0,0.000525,120]
[355695131,1741470644080,-150.0,0.00053441,30]
[355695132,1741470644091,-700.0,0.00054198,15]
[355695133,1741470644101,-500.0,0.00054199,120]
[355695134,1741470644110,-500.0,0.00054199,120]
[355695135,1741470644120,-500.0,0.00054199,120]
[355695136,1741470644129,-200.0,0.00054209,120]
[355695137,1741470644138,-160.0,0.00054269,3]
[355695138,1741470644148,-1382.74001264,0.00054694,28]
[355695139,1741470644159,-500.0,0.00054793,120]
[355695140,1741470644168,-454.99788546,0.00054793,120]
[355695150,1741470646740,-104.74680661,0.00054793,120]
[355695151,1741470646771,-60.33530793,0.00054793,120]
[355695152,1741470646781,-187.0,0.00054794,2]
[355695153,1741470646791,-666.0,0.00054794,120]
[355695154,1741470646800,-503.3581872,0.00054794,120]
[355695155,1741470646809,-2193.25260655,0.00054794,120]
[355695162,1741470909181,-188.87013029,0.0003579,2]
[355695163,1741470971410,-181.44388815,0.0003579,2]
[355695164,1741470973201,-150.0,0.0003579,2]
[355695168,1741471169972,-207.48131028,0.000379,8]
[355695169,1741471248327,-152.85934486,0.00040996,120]
[355695171,1741471628608,-332.31431646,0.00034566,2]
[355695172,1741471628634,-162.414741,0.0003589,2]
[355695173,1741471628659,-946.38614933,0.000409,8]
[355695174,1741471628683,-268.16270648,0.00041096,2]
[355695175,1741471628707,-550.0,0.00046499,5]
[355695176,1741471628731,-1570.7312358,0.000465,19]
[355695177,1741471628755,-1570.7312358,0.000465,19]
[355695178,1741471628780,-295.2178564,0.00046598,2]
[355695179,1741471628803,-203.4043045,0.00046627,2]
[355695180,1741471628829,-215.57118073,0.00047165,2]
[355695181,1741471630122,-202.33418617,0.00047165,2]
[355695182,1741471630146,-390.831556,0.00049061,2]
[355695183,1741471630171,-770.0,0.00049263,5]
[355695184,1741471630197,-1691.55671548,0.0004929,23]
[355695185,1741471630220,-241.65095936,0.0004929,23]
[355695186,1741471630244,-150.0,0.000494,2]
[355695187,1741471630267,-700.21510941,0.0005,90]
[355695188,1741471630290,-51.200812,0.0005208,27]
[355695189,1741471642080,-153.12,0.000488,45]
[355695190,1741471642109,-153.12,0.000513,48]
[355695191,1741471642137,-153.12,0.000513,48]
[355695192,1741471642158,-554.74562892,0.0005208,27]
[355695193,1741471642180,-220.0,0.00052192,15]
[355695194,1741471642202,-51.17082599,0.00052694,4]
[355695195,1741471649094,-98.82917401,0.00052694,4]
[355695196,1741471649118,-162.414741,0.0005274,2]
[355695197,1741471649142,-1000.0,0.00053,2]
[355695198,1741471649165,-150.0,0.000531,14]
[355695199,1741471649187,-150.0,0.000531,14]
[355695200,1741471649210,-285.865794,0.000531,14]
[355695201,1741471649239,-153.12,0.000537,54]
[355695202,1741471649266,-21.25043082,0.000537,54]
[355695204,1741471773073,-170.060367,0.00047625,2]
[355695205,1741471773095,-150.0,0.000494,2]
[355695206,1741471773116,-914.83994442,0.000499,11]
[355695207,1741471773136,-150.0,0.000509,4]
[355695208,1741471818843,164.0,0.000433,120]
[355695209,1741471821074,164.0,0.000466,120]
[355695210,1741471822223,178.63725,0.0004104,14]
[355695211,1741471823397,164.0,0.000499,120]
[355695245,1741471832004,-164.0,0.000532,120]
[355695246,1741471832015,-131.86956918,0.000537,54]
[355695247,1741471832025,-192.60854558,0.00054099,120]
[355695248,1741471832034,-431.66173481,0.00054581,2]
[355695249,1741471832044,-1591.25118743,0.00054773,14]
[355695250,1741471832053,-402.97948925,0.00054773,14]
[355695251,1741471832062,-593.53318174,0.00054785,2]
[355695252,1741471832071,-18346.47812943,0.00054786,71]
[355695332,1741471840029,-108.25611635,0.00054785,2]
[355695334,1741471840041,-485.27706539,0.00054785,2]
[355695336,1741471840051,-14.72293461,0.00054785,2]
[355695443,1741471842973,-578.81024713,0.00054785,2]
[355695444,1741471842983,-593.53318174,0.00054785,2]
[355695445,1741471842992,-593.53318174,0.00054785,2]
[355695446,1741471843002,-593.53318174,0.00054785,2]
[355695447,1741471843011,-593.53318174,0.00054785,2]
[355695448,1741471843021,-339.93960071,0.00054785,2]
[355695449,1741471843033,-253.59358103,0.00054785,2]
[355695450,1741471843044,-593.53318174,0.00054785,2]
[355695451,1741471843054,-593.53318174,0.00054785,2]
[355695452,1741471843064,-593.53318174,0.00054785,2]
[355695453,1741471843073,-593.53318174,0.00054785,2]
[355695454,1741471843083,-593.53318174,0.00054785,2]
[355695456,1741471843093,-593.53318174,0.00054785,2]
[355695457,1741471843102,-593.53318174,0.00054785,2]
[355695458,1741471843111,-593.53318174,0.00054785,2]
[355695459,1741471843120,-593.53318174,0.00054785,2]
[355695460,1741471843130,-593.53318174,0.00054785,2]
[355695461,1741471843140,-593.53318174,0.00054785,2]
[355695462,1741471843149,-593.53318174,0.00054785,2]
[355695463,1741471843158,-593.53318174,0.00054785,2]
[355695464,1741471843168,-593.53318174,0.00054785,2]
[355695465,1741471843177,-593.53318174,0.00054785,2]
[355695466,1741471843187,-593.53318174,0.00054785,2]
[355695467,1741471843198,-593.53318174,0.00054785,2]
[355695468,1741471843208,-593.53318174,0.00054785,2]
[355695469,1741471843217,-593.53318174,0.00054785,2]
[355695470,1741471843227,-593.53318174,0.00054785,2]
[355695471,1741471843237,-593.53318174,0.00054785,2]
[355695472,1741471843247,-593.53318174,0.00054785,2]
[355695473,1741471843257,-593.53318174,0.00054785,2]
[355695474,1741471843266,-593.53318174,0.00054785,2]
[355695475,1741471843279,-593.53318174,0.00054785,2]
[355695476,1741471843289,-593.53318174,0.00054785,2]
[355695477,1741471843298,-593.53318174,0.00054785,2]
[355695478,1741471843308,-593.53318174,0.00054785,2]
[355695479,1741471843318,-593.53318174,0.00054785,2]
[355695480,1741471843327,-593.53318174,0.00054785,2]
[355695481,1741471843337,-593.53318174,0.00054785,2]
[355695482,1741471843346,-593.53318174,0.00054785,2]
[355695483,1741471843355,-593.53318174,0.00054785,2]
[355695484,1741471843365,-593.53318174,0.00054785,2]
[355695485,1741471843374,-593.53318174,0.00054785,2]
[355695486,1741471843384,-593.53318174,0.00054785,2]
[355695487,1741471843393,-593.53318174,0.00054785,2]
[355695488,1741471843402,-593.53318174,0.00054785,2]
[355695489,1741471843411,-593.53318174,0.00054785,2]
[355695490,1741471843420,-341.42584503,0.00054785,2]
[355695545,1741471845836,-252.10733671,0.00054785,2]
[355695546,1741471845847,-593.53318174,0.00054785,2]
[355695547,1741471845856,-593.53318174,0.00054785,2]
[355695548,1741471845866,-593.53318174,0.00054785,2]
[355695549,1741471845876,-593.53318174,0.00054785,2]
[355695550,1741471845885,-593.53318174,0.00054785,2]
[355695551,1741471845895,-593.53318174,0.00054785,2]
[355695552,1741471845904,-593.53318174,0.00054785,2]
[355695553,1741471845914,-593.53318174,0.00054785,2]
[355695554,1741471845923,-593.53318174,0.00054785,2]
[355695555,1741471845933,-567.56610503,0.00054785,2]
[355695556,1741471845943,-567.56610503,0.00054785,2]
[355695557,1741471845953,-567.56610503,0.00054785,2]
[355695558,1741471845962,-567.56610503,0.00054785,2]
[355695559,1741471845972,-567.56610503,0.00054785,2]
[355695560,1741471845981,-567.56610503,0.00054785,2]
[355695561,1741471845991,-567.56610503,0.00054785,2]
[355695562,1741471846001,-567.56610503,0.00054785,2]
[355695563,1741471846011,-567.56610503,0.00054785,2]
[355695564,1741471846020,-567.56610503,0.00054785,2]
[355695565,1741471846031,-567.56610503,0.00054785,2]
[355695566,1741471846040,-567.56610503,0.00054785,2]
[355695567,1741471846050,-567.56610503,0.00054785,2]
[355695568,1741471846060,-567.56610503,0.00054785,2]
[355695569,1741471846070,-567.56610503,0.00054785,2]
[355695570,1741471846080,-567.56610503,0.00054785,2]
[355695571,1741471846090,-567.56610503,0.00054785,2]
[355695572,1741471846100,-567.56610503,0.00054785,2]
[355695573,1741471846109,-567.56610503,0.00054785,2]
[355695574,1741471846119,-567.56610503,0.00054785,2]
[355695575,1741471846129,-567.56610503,0.00054785,2]
[355695576,1741471846138,-6645.23723098,0.00054786,71]
[355695577,1741471846148,-3408.03533592,0.00054786,71]
[355695578,1741471846157,-9999.0,0.00054787,2]
[355695579,1741471846167,-525.444355,0.00054787,2]
[355695580,1741471846176,-199.97,0.00054791,120]
[355695581,1741471846185,-500.0,0.00054791,7]
[355695582,1741471846195,-503.95231614,0.00054793,2]
[355695583,1741471846205,-500.0,0.00054793,2]
[355695584,1741471846215,-500.0,0.00054793,120]
[355695585,1741471846224,-500.0,0.00054793,120]
[355695586,1741471846234,-500.0,0.00054793,2]
[355695587,1741471846244,-500.0,0.00054793,120]
[355695588,1741471846254,-500.0,0.00054793,120]
[355695589,1741471846263,-553.58221377,0.00054793,120]
[355695590,1741471846273,-3098.36,0.00054794,120]
[355695591,1741471846283,-612.95,0.0005489,10]
[355695592,1741471846292,-8210.0758411,0.000549,120]
[355695593,1741471846301,-884.34527949,0.000549,13]
[355695594,1741471846311,-163.0,0.00055,120]
[355695595,1741471846321,-163.0,0.00055,120]
[355695596,1741471846331,-150.0,0.00055019,30]
[355695597,1741471846342,-500.0,0.00055065,7]
[355695598,1741471846353,-3098.36,0.00055067,120]
[355695599,1741471846371,-500.0,0.00055067,2]
[355695600,1741471846384,-500.0,0.00055067,120]
[355695601,1741471846395,-431.66173482,0.00055129,2]
[355695602,1741471846406,-500.0,0.00055339,7]
[355695603,1741471846418,-3098.36,0.00055341,120]
[355695604,1741471846429,-500.0,0.00055341,2]
[355695605,1741471846438,-306.57311174,0.00055414,2]
[355695606,1741471846448,-500.0,0.00055414,15]
[355695607,1741471846458,-500.0,0.00055613,7]
[355695608,1741471846467,-3098.36,0.00055615,120]
[355695609,1741471846477,-500.0,0.00055615,2]
[355695610,1741471846489,-500.0,0.00055887,7]
[355695611,1741471846505,-3098.36,0.00055889,120]
[355695612,1741471846518,-500.0,0.00055889,2]
[355695613,1741471846529,-289.42,0.00056161,7]
[355695614,1741471846539,-3098.36,0.00056163,120]
[355695615,1741471846550,-500.0,0.00056163,2]
[355695616,1741471846562,-153.12,0.000562,57]
[355695617,1741471846579,-153.12,0.000562,57]
[355695618,1741471846589,-183.39134414,0.00056337,2]
[355695619,1741471846599,-150.0,0.00056389,30]
[355695620,1741471846608,-3098.36,0.00056437,120]
[355695621,1741471846619,-500.0,0.00056437,2]
[355695622,1741471846631,-164.0,0.000565,120]
[355695623,1741471846642,-510.8,0.0005669,10]
[355695624,1741471846652,-19350.36042182,0.000567,120]
[355695625,1741471846664,-3098.36,0.00056711,120]
[355695626,1741471846673,-500.0,0.00056711,2]
[355695627,1741471846682,-748.1561472,0.0005679,5]
[355695628,1741471846693,-213750.97569105,0.000568,120]
[355695629,1741471856733,36.64169419,0.000494,2]
[355695631,1741471936790,162.414741,0.0003589,2]
[355695637,1741472834081,-261.34964296,0.000421,2]
[355695638,1741472834105,-154.0,0.000422,120]
[355695639,1741472834128,-854.86710342,0.000429,9]
[355695640,1741472834149,-720.60503311,0.00043836,10]
[355695642,1741472841125,-303.8267331,0.00043836,10]
[355695643,1741472842975,-177.5996812,0.0004,120]
[355695644,1741472848116,-811.1003188,0.0004,120]
[355695645,1741472848139,-671.66445754,0.00043836,10]
[355695646,1741472848161,-156.0,0.00044,120]
[355695647,1741472848185,-131.93552396,0.000443,120]
[355695648,1741472849092,-52.53229256,0.000443,120]
[355695649,1741472849115,-154.0,0.000444,120]
[355695650,1741472849138,-154.0,0.000466,120]
[355695651,1741472849160,-250.0,0.00046644,2]
[355695652,1741472849183,-550.0,0.00047019,5]
[355695653,1741472849206,-2818.3780648,0.0004702,2]
[355695654,1741472849228,-599.9118177,0.00047095,2]
[355695655,1741472849252,-171.403767,0.00047293,2]
[355695656,1741472849275,-250.0,0.00047581,2]
[355695657,1741472849297,-195.415778,0.00047923,2]
[355695658,1741472849319,-156.0,0.00048,120]
[355695659,1741472849342,-500.0,0.00048406,99]
[355695660,1741472849363,-154.0,0.000488,120]
[355695661,1741472849384,-5000.0,0.00049,120]
[355695662,1741472849406,-198.17745636,0.000493,2]
[355695663,1741472849427,-150.0,0.000494,2]
[355695664,1741472849449,-204.0,0.00049787,5]
[355695665,1741472849472,-154.0,0.00051,120]
[355695666,1741472849495,-156.0,0.00052,120]
[355695667,1741472849518,-171.403767,0.00052022,2]
[355695668,1741472849539,-500.0,0.00053,2]
[355695669,1741472849562,-154.0,0.000532,120]
[355695670,1741472849583,-288.55842789,0.000547,4]
[355695671,1741472854116,-147.47563485,0.000547,4]
[355695672,1741472854140,-500.0,0.00054798,120]
[355695673,1741472854166,-154.0,0.000554,120]
[355695674,1741472854190,-413.9146037,0.00056,60]
[355695675,1741472854216,-156.0,0.00056,120]
[355695676,1741472854241,-198.0,0.00056,120]
[355695677,1741472854266,-416.66666667,0.00056586,2]
[355695678,1741472854290,-1520.66051213,0.00056587,28]
[355695679,1741472854314,-2740.79761259,0.000566,120]
[355695680,1741472854345,-259.20238741,0.000566,120]
[355695681,1741472854371,-500.0,0.00056602,2]
[355695682,1741472854399,-500.0,0.00056602,2]
[355695683,1741472854427,-500.0,0.00056602,2]
[355695684,1741472854455,-500.0,0.00056602,2]
[355695685,1741472854480,-500.0,0.00056602,2]
[355695686,1741472854507,-500.0,0.00056602,2]
[355695687,1741472854532,-500.0,0.00056602,2]
[355695688,1741472854556,-233.7554389,0.00056602,2]
[355695696,1741472916216,43000.0,0.00015,2]
[355695697,1741472916573,-238.98781511,0.0002799,2]
[355695699,1741472933315,-173.0,0.0002799,2]
[355695700,1741472945076,-10540.07039671,0.0002799,2]
[355695701,1741472945097,-302.0,0.00035,60]
[355695702,1741472945118,-1586.5698528,0.00039467,2]
[355695703,1741472945138,-547.46688716,0.00042,120]
[355695705,1741472952089,-190.0498857,0.00042,120]
[355695706,1741472952115,-180.52378682,0.00047,120]
[355695707,1741472952136,-405.3171447,0.00047295,2]
[355695708,1741472952157,-4434.44896986,0.00048,120]
[355695761,1741473032187,-743.79463951,0.000479,11]
[355695928,1741473038102,-115.93122011,0.000479,11]
[355695929,1741473038111,-105.27119983,0.00048,120]
[355695949,1741473040546,-0.05606978,0.00048,120]
[355695998,1741473043142,-598.31052825,0.00048,120]
[355695999,1741473043151,-800.49470975,0.00049,120]
[355696000,1741473043308,-943.2152442,0.00049,120]
[355696010,1741473046202,-694.09037425,0.00049,120]
[355696011,1741473046214,-1899.11689108,0.00049,120]
[355696012,1741473046224,-150.0,0.000494,2]
[355696013,1741473046234,-184.46781651,0.00049683,120]
[355696014,1741473046244,-1256.5261519,0.000497,28]
[355696015,1741473064841,1186.37203114,0.00043836,10]
[355696025,1741474018122,-206.90415627,0.00033422,2]
[355696026,1741474032090,-1331.93358849,0.00033422,2]
[355696027,1741474032111,-380.0,0.00034885,2]
[355696028,1741474032132,-1441.92760254,0.0003579,2]
[355696029,1741474034107,-1270.69282594,0.0003579,2]
[355696030,1741474034130,-162.41435,0.0003589,2]
[355696031,1741474034153,-927.95986608,0.000359,7]
[355696032,1741474034176,-184.46781651,0.000362,98]
[355696033,1741474034198,-400.0,0.00037564,2]
[355696034,1741474034225,-4692.66550539,0.00037565,2]